[Event "USA Championship 2022"]
[Site "Saint Louis"]
[Date "2022.10.05"]
[Round "1.1"]
[White "Lenderman, Aleksandr"]
[Black "Aronian, Levon"]
[Result "1/2-1/2"]
[ECO "E57"]
[WhiteElo "2535"]
[BlackElo "2755"]
[Annotator "TA"]
[PlyCount "33"]
[EventDate "2022.09.05"]
[EventType "tourn"]
[EventCountry "USA"]
[SourceTitle "playchess.com"]
[Source "ChessBase"]
[SourceQuality "1"]
[TimeControl "40/5400+30:1800+30"]

{[%evp 32,33,0,0]} 1. d4 {[%emt 0:00:03]} Nf6 {[%emt 0:00:06]} 2. c4 {[%emt 0:00:05]} e6 {[%emt 0:00:05]} 3. Nc3 {[%emt 0:00:06]} Bb4 {[%emt 0:00:06]} 4. e3 {[%emt 0:00:05]} O-O {[%emt 0:00:19]} 5. Bd3 {[%emt 0:00:05]} c5 {[%emt 0:00:40]} 6. Nf3 {[%emt 0:00:09]} cxd4 {[%emt 0:00:23]} 7. exd4 {[%emt 0:00:06]} d5 {[%emt 0:00:04]} 8. O-O {[%emt 0:00:17]} dxc4 {[%emt 0:00:09]} 9. Bxc4 {[%emt 0:00:06]} b6 {[%emt 0:00:23]} 10. Re1 {[%emt 0:00:07]} Bb7 {[%emt 0:00:55]} 11. Bd3 {[%emt 0:00:15]} Nc6 {[%emt 0:02:25]} 12. a3 {[%emt 0:00:14]} Be7 {[%emt 0:02:26]} 13. Bc2 {[%emt 0:00:33] [#]} Na5 $146 {[%emt 0:02:04]} ({Predecessor:} 13... Rc8 14. Qd3 g6 15. Bh6 Re8 16. Rad1 Nd5 17. Bb3 Na5 18. Ba2 Nxc3 19. bxc3 Bd5 20. Bxd5 Qxd5 21. a4 Nc4 22. Re2 Bf6 23. h4 Red8 24. Ng5 Qf5 25. Qg3 Nd6 26. Rde1 Qd5 27. Qf4 Qf5 28. Qg3 Qd5 29. Qf4 Qf5 30. Qg3 {½-½ (30) Korobov,A (2670)-Karjakin,S (2754) Bucharest 2019}) 14. Ne5 {[%emt 0:04:12]} Nc6 {[%emt 0:00:19]} 15. Nf3 {[%emt 0:12:34]} Na5 {[%emt 0:00:26]} 16. Ne5 {[%emt 0:12:48]} Nc6 {[%emt 0:00:14]} 17. Nf3 {[%emt 0:29:26]} 1/2-1/2

[Event "USA Championship 2022"]
[Site "Saint Louis"]
[Date "2022.10.05"]
[Round "1.2"]
[White "Sevian, Samuel"]
[Black "Moradiabadi, Elshan"]
[Result "1-0"]
[ECO "E16"]
[WhiteElo "2684"]
[BlackElo "2534"]
[Annotator "TA"]
[PlyCount "121"]
[EventDate "2022.09.05"]
[EventType "tourn"]
[EventCountry "USA"]
[SourceTitle "playchess.com"]
[Source "ChessBase"]
[SourceQuality "1"]
[TimeControl "40/5400+30:1800+30"]

{[%evp 16,121,26,33,43,28,33,33,34,34,40,27,30,33,42,20,16,16,18,16,31,17,29,29,64,53,92,91,84,42,65,75,73,59,77,93,95,47,51,50,58,54,42,39,48,48,51,52,50,60,52,33,39,0,0,0,56,0,0,0,0,0,0,0,0,0,0,0,0,0,0,0,0,0,5,0,0,0,0,33,295,0,0,0,308,301,294,294,279,279,279,279,265,258,258,247,285,247,243,227,1004,1004,4947,759,2139,1554,29996,29997]} 1. d4 {[%emt 0:00:09]} Nf6 {[%emt 0:00:37]} 2. c4 {[%emt 0:00:13]} e6 {[%emt 0:00:12]} 3. Nf3 {[%emt 0:00:32]} b6 {[%emt 0:00:56]} 4. g3 {[%emt 0:00:18]} Bb7 {[%emt 0:01:12]} 5. Bg2 {[%emt 0:02:07]} Bb4+ {[%emt 0:06:21]} 6. Bd2 {[%emt 0:03:08]} a5 {[%emt 0:00:20]} 7. O-O {[%emt 0:01:20]} O-O {[%emt 0:00:09]} 8. Bg5 {[%emt 0:06:04]} Be7 {[%emt 0:00:32]} 9. Qc2 {[%emt 0:10:19]} Na6 {[%emt 0:06:53] E16: Queen's Indian: 4 g3 Bb7 5 Bg2 Bb4+.} 10. Bxf6 {[%emt 0:13:22]} Bxf6 {[%emt 0:00:05] [#]} 11. Ng5 $1 {[%emt 0:02:26]} Bxg5 {[%emt 0:00:07] White is slightly better.} 12. Bxb7 {[%emt 0:00:03]} Nb4 {[%emt 0:00:42] [#]} 13. Qd1 $146 {[%emt 0:01:41]} ({Predecessor:} 13. Qa4 Rb8 14. Bg2 c5 15. dxc5 bxc5 16. Rd1 d6 17. Nc3 Qb6 18. a3 Na6 19. Ne4 {½-½ (48) Schreiner,P (2463)-Stupak,K (2583) Batumi 2018}) 13... Rb8 {[%emt 0:00:35]} 14. Bg2 {[%emt 0:00:11]} c5 {[%emt 0:09:04]} 15. d5 {[%emt 0:17:31]} Bf6 {[%emt 0:01:22]} 16. Nc3 {[%emt 0:01:34]} exd5 {[%emt 0:00:17]} 17. Nxd5 {[%emt 0:07:18]} Nxd5 {[%emt 0:03:22]} (17... Bxb2 {feels hotter.} 18. Rb1 Be5 19. Qd2 Re8) 18. Bxd5 {[%emt 0:03:19]} b5 {[%emt 0:06:29]} 19. Rb1 {[%emt 0:00:36]} bxc4 {[%emt 0:00:04]} 20. Qc2 {[%emt 0:00:06]} c3 {[%emt 0:05:42]} 21. bxc3 {[%emt 0:00:14]} Qc7 {[%emt 0:00:04]} 22. Bc4 {[%emt 0:13:29]} Qe5 {[%emt 0:04:54]} 23. Rxb8 {[%emt 0:00:07]} Rxb8 {[%emt 0:00:05]} 24. Rd1 {[%emt 0:00:05] Prevents d5.} Rd8 {[%emt 0:04:05]} 25. Qa4 {[%emt 0:03:54][%csl LRa5,LRd7]} Qc7 {[%emt 0:01:23]} (25... Qxc3 $2 26. Rxd7 Qe5 27. Bxf7+ Kh8 28. Rxd8+ Bxd8 29. e4 $18) 26. Rd3 {[%emt 0:00:55] White is more active.} (26. Bd5 $16) 26... g6 $14 {[%emt 0:00:18]} 27. Bd5 {[%emt 0:01:26]} Kg7 {[%emt 0:00:23]} 28. c4 {[%emt 0:02:33]} Rb8 {[%emt 0:08:30] [#]} 29. Bxf7 $1 {[%emt 0:01:00]} Qc6 {[%emt 0:00:23]} 30. Qxc6 {[%emt 0:00:29]} dxc6 {[%emt 0:00:02][%mdl 4096] Endgame KRB-KRB} 31. Rd7 {[%emt 0:00:38]} Rb2 {[%emt 0:01:33][%csl LRa2,LRe2]} 32. Be6+ {[%emt 0:07:19]} Kh8 {[%emt 0:01:11]} 33. Rf7 {[%emt 0:00:06]} Bc3 {[%emt 0:01:18]} 34. Rf8+ {[%emt 0:00:04]} Kg7 {[%emt 0:00:04]} 35. Rf7+ {[%emt 0:00:02]} Kh8 $1 {[%emt 0:01:20]} 36. e3 {[%emt 0:02:53]} (36. Rf3 $14 Be5 37. Ra3) 36... Rxa2 $11 {[%emt 0:00:17]} 37. Rf8+ {[%emt 0:00:03]} Kg7 {[%emt 0:00:03]} 38. Rf7+ {[%emt 0:00:02]} Kh8 {[%emt 0:00:12]} 39. g4 {[%emt 0:01:16]} Be1 {[%emt 0:05:08][%cal Oe1f2]} 40. Rf8+ {[%emt 0:00:43]} Kg7 {[%emt 0:00:05]} 41. Rf7+ {[%emt 0:30:02]} Kh8 $1 {[%emt 0:30:34][%cal Oe1f2]} 42. f4 {[%emt 0:00:00][%cal Bf2f4,Bf4f5][%mdl 32]} Bf2+ {[%emt 0:00:00]} 43. Kh1 {[%emt 0:00:00] Threatens to win with f5.} Bxe3 {[%emt 0:00:00]} 44. g5 {[%emt 0:00:00] Intending Rf8+ and mate.} h6 {[%emt 0:00:00]} 45. Rf8+ {[%emt 0:00:00]} Kh7 {[%emt 0:00:00]} (45... Kg7 $5 46. Rf7+ $8 Kh8 $11) 46. Rf7+ {[%emt 0:00:00]} Kh8 $1 {[%emt 0:00:00]} 47. f5 {[%emt 0:00:00]} Rf2 $2 {[%emt 0:00:00][%mdl 8192]} (47... hxg5 48. fxg6 Ra1+ 49. Kg2 Ra2+ 50. Kg3 Bf4+ 51. Kg4 Rg2+ 52. Kf5 Rxh2 53. g7+ Kg8 54. Ra7+ Kh7 55. g8=Q+ Kh6 56. Qh8#) (47... Ra1+ $1 $14 48. Kg2 Rg1+ 49. Kf3 Bxg5) 48. Rf8+ {[%emt 0:00:00]} (48. fxg6 Rxf7 49. gxf7 Kg7 $11) 48... Kh7 {[%emt 0:00:00] aiming for ...gxf5.} 49. Rf7+ {[%emt 0:00:00]} Kh8 $1 {[%emt 0:00:00]} 50. Ra7 {[%emt 0:00:10]} (50. fxg6 Rxf7 51. gxf7 Kg7 $11) 50... gxf5 {[%emt 0:05:06]} 51. g6 {[%emt 0:00:05][%csl Gg6][%cal Ra7h7]} Rf1+ {[%emt 0:00:04]} 52. Kg2 {[%emt 0:00:01][%csl Gg6][%cal Ra7h7]} Rg1+ {[%emt 0:00:06]} 53. Kf3 {[%emt 0:00:02][%csl Gg6][%cal Ra7h7]} Rxg6 {[%emt 0:00:07]} 54. Bf7 {[%emt 0:02:33]} ({Worse is} 54. Bxf5 Rf6 $11) 54... Rg4 {[%emt 0:01:33]} 55. Kxe3 $18 {[%emt 0:00:11] KRB-KR} Rh4 {[%emt 0:00:10]} 56. Bg6 {[%emt 0:02:38]} ({Don't take} 56. Rxa5 $6 Kg7 $16) 56... Rxc4 {[%emt 0:00:03]} 57. Bxf5 {[%emt 0:00:05]} a4 $2 {[%emt 0:00:04]} (57... Rh4 58. h3 (58. Rxa5 Rxh2 59. Ra7 Rh4 $16) 58... a4) 58. Be4 {[%emt 0:00:30]} Rc3+ {[%emt 0:00:18] [#]} 59. Kf4 $1 {[%emt 0:00:12]} Rh3 {[%emt 0:00:59]} 60. Kf5 {[%emt 0:00:15] White threatens Kg6 and mate.} Kg8 {[%emt 0:00:26]} 61. Kf6 {[%emt 0:00:11] Weighted Error Value: White=0.14 (very precise) /Black=0.27 (precise)} 1-0

[Event "USA Championship 2022"]
[Site "Saint Louis"]
[Date "2022.10.05"]
[Round "1.3"]
[White "Liang, Awonder"]
[Black "So, Wesley"]
[Result "1/2-1/2"]
[ECO "C47"]
[WhiteElo "2608"]
[BlackElo "2774"]
[Annotator "TA"]
[PlyCount "67"]
[EventDate "2022.09.05"]
[EventType "tourn"]
[EventCountry "USA"]
[SourceTitle "playchess.com"]
[Source "ChessBase"]
[SourceQuality "1"]
[TimeControl "40/5400+30:1800+30"]

{[%evp 16,67,0,6,7,4,4,4,4,4,2,0,0,0,0,0,0,0,0,0,0,0,7,0,0,0,32,0,0,0,0,0,0,0,0,0,0,0,0,0,0,0,0,0,0,0,0,0,0,0,0,0,4,0]} 1. e4 {[%emt 0:00:01]} e5 {[%emt 0:01:38]} 2. Nf3 {[%emt 0:00:03]} Nc6 {[%emt 0:00:39]} 3. Nc3 {[%emt 0:00:02]} Nf6 {[%emt 0:01:25]} 4. d4 {[%emt 0:00:02]} exd4 {[%emt 0:01:10]} 5. Nxd4 {[%emt 0:00:01]} Bb4 {[%emt 0:00:06]} 6. Nxc6 {[%emt 0:00:12]} bxc6 {[%emt 0:00:07]} 7. Bd3 {[%emt 0:00:06][%cal Bf1d3,Bd3e4,Be4c6][%mdl 32]} O-O {[%emt 0:00:06]} 8. O-O {[%emt 0:00:07]} d5 {[%emt 0:00:03]} 9. Bd2 {[%emt 0:00:09]} Bxc3 {[%emt 0:06:54] C47: Scotch Four Knights and Four Knights with 4 g3.} 10. Bxc3 {[%emt 0:00:27]} dxe4 $1 {[%emt 0:00:37][%mdl 4] is recently more successful than 10...Nxe4.} (10... Nxe4 {is more complex.} 11. Bxe4 dxe4 12. Qe2 Qe7) 11. Bxf6 {[%emt 0:00:44]} (11. Bc4 {is interesting.} Qd6 12. Re1 Re8 13. Bb3) 11... Qxf6 {[%emt 0:00:07]} 12. Bxe4 {[%emt 0:00:06]} Qxb2 {[%emt 0:00:06]} 13. Bxc6 {[%emt 0:00:14]} Rb8 {[%emt 0:00:33]} 14. Rb1 {[%emt 0:00:03]} Qxb1 {[%emt 0:00:23]} 15. Qxb1 {[%emt 0:00:01]} Rxb1 {[%emt 0:00:08]} 16. Rxb1 $11 {[%emt 0:00:04][%mdl 4096] Endgame KRB-KRB} Rd8 {[%emt 0:00:06]} 17. Bf3 {[%emt 0:01:58]} Kf8 {[%emt 0:03:18]} 18. Rb8 {[%emt 0:10:14]} Re8 {[%emt 0:07:32][%cal Re8e1] [#]} 19. h4 {[%emt 0:00:29]} Ba6 {[%emt 0:04:15] [#]} 20. Rb4 $5 $146 {[%emt 0:05:40][%mdl 8] An interesting novelty.} ({Predecessor:} 20. Rb3 Re5 21. Rc3 Re7 22. Ra3 Re6 23. Bd5 Rb6 24. Bb3 c5 25. Ra4 g6 26. f3 {1-0 (64) Karjakin,S (2743)-Vidit,S (2727) Wijk aan Zee 2022}) 20... Re1+ {[%emt 0:04:08]} 21. Kh2 {[%emt 0:00:18]} Re5 {[%emt 0:02:16] The position is equal.} 22. Ra4 {[%emt 0:11:32]} Be2 {[%emt 0:03:22]} 23. Kg3 {[%emt 0:01:01]} Bxf3 {[%emt 0:01:32]} 24. Kxf3 {[%emt 0:00:03] KR-KR} Rc5 {[%emt 0:01:37]} 25. Rxa7 {[%emt 0:00:51]} Rc3+ {[%emt 0:00:19]} 26. Ke2 {[%emt 0:00:02]} Rxc2+ {[%emt 0:00:05]} 27. Ke3 {[%emt 0:00:04]} h5 {[%emt 0:01:25]} 28. g3 {[%emt 0:00:17]} Ke7 {[%emt 0:00:33]} 29. a4 {[%emt 0:00:20]} g6 {[%emt 0:01:00]} 30. Ra8 {[%emt 0:00:22]} Rc3+ {[%emt 0:00:24]} 31. Ke4 {[%emt 0:02:37]} Rc2 {[%emt 0:01:50]} 32. Ke3 {[%emt 0:00:09]} Rc3+ {[%emt 0:00:28]} 33. Ke4 {[%emt 0:00:02]} Rc2 {[%emt 0:00:05]} 34. Ke3 {[%emt 0:00:05] A balanced but interesting game.  Weighted Error Value: White=0.01 (flawless) /Black=0.00 (flawless)} 1/2-1/2

[Event "USA Championship 2022"]
[Site "Saint Louis"]
[Date "2022.10.05"]
[Round "1.4"]
[White "Yoo, Christopher Woojin"]
[Black "Niemann, Hans Moke"]
[Result "0-1"]
[ECO "D00"]
[WhiteElo "2563"]
[BlackElo "2699"]
[Annotator "TA"]
[PlyCount "108"]
[EventDate "2022.09.05"]
[EventType "tourn"]
[EventCountry "USA"]
[SourceTitle "playchess.com"]
[Source "ChessBase"]
[SourceQuality "1"]
[TimeControl "40/5400+30:1800+30"]

{[%evp 9,108,-6,-10,-12,-8,-19,0,-4,0,0,0,-7,16,-20,-26,-22,-19,-8,-8,-42,-36,-41,-18,-29,-35,-50,-31,-86,-50,-87,-55,-59,-52,-95,-59,-93,-85,-97,-92,-102,-101,-99,-70,-131,-129,-132,-134,-135,-128,-137,-87,-88,0,-72,-50,-146,-127,-133,-102,-73,-56,-80,-98,-294,-294,-291,-313,-293,-310,-295,-269,-562,-548,-862,-850,-787,-783,-11184,-9391,-6342,-6130,-6130,-9140,-6569,-5604,-5089,-5764,-6101,-4471,-29961,-12850,-29973,-29974,-29974,-29975,-29975,-29976,-29973,-29974,-12035,-5764]} 1. d4 {[%emt 0:00:53]} Nf6 {[%emt 0:00:47]} 2. Nc3 {[%emt 0:00:35]} d5 {[%emt 0:00:26]} 3. Bf4 {[%emt 0:00:02]} e6 {[%emt 0:05:35]} 4. Nb5 {[%emt 0:00:03]} Na6 {[%emt 0:00:36]} 5. e3 {[%emt 0:00:07]} Be7 {[%emt 0:02:29]} 6. Nf3 {[%emt 0:00:05] D00: 1 d4 d5: Unusual lines.} O-O {[%emt 0:02:28]} 7. Be2 {[%emt 0:00:14]} Nh5 $5 {[%emt 0:08:40][%mdl 4] Leaves trodden paths.} 8. Be5 {[%emt 0:02:26] The position is equal.} f6 {[%emt 0:00:34]} 9. Bg3 {[%emt 0:00:02]} c6 {[%emt 0:06:41]} 10. Nc3 {[%emt 0:00:11]} c5 {[%emt 0:00:17]} 11. O-O {[%emt 0:08:12]} (11. Bh4 $5 {[%cal Rg2g4]}) 11... Nxg3 {[%emt 0:11:44]} 12. hxg3 {[%emt 0:00:04] [#]} c4 $146 {[%emt 0:07:21]} ({Predecessor:} 12... f5 13. Ne5 Nb8 14. f4 Nc6 15. Bb5 Nxe5 16. dxe5 a6 17. Be2 b5 18. Bf3 b4 {0-1 (41) Prydun,A (2223)-Oparin,G (2654) Chess.com INT 2021}) 13. e4 {[%emt 0:03:06]} Bb4 {[%emt 0:01:03]} 14. exd5 {[%emt 0:05:48]} exd5 {[%emt 0:00:22]} 15. Nb1 {[%emt 0:02:05]} Nc7 {[%emt 0:01:53]} 16. c3 {[%emt 0:01:55]} Bd6 {[%emt 0:00:58]} 17. Nbd2 {[%emt 0:01:04]} b5 {[%emt 0:02:49]} 18. Ne1 {[%emt 0:03:24]} (18. a4 $15) 18... Be6 {[%emt 0:06:54]} 19. Nc2 {[%emt 0:02:29]} Qd7 {[%emt 0:00:34]} 20. Re1 {[%emt 0:02:31]} a5 {[%emt 0:01:00]} 21. a3 {[%emt 0:06:43] Against b4} g6 {[%emt 0:09:55]} 22. Nf1 {[%emt 0:07:51]} h5 {[%emt 0:02:13]} 23. Qd2 {[%emt 0:01:08]} Kg7 {[%emt 0:01:12]} 24. f4 {[%emt 0:01:06]} Rh8 {[%emt 0:11:07]} 25. Bf3 {[%emt 0:01:46]} f5 {[%emt 0:03:59]} 26. Re2 {[%emt 0:08:02]} (26. Re5 $15) 26... Ne8 $1 $17 {[%emt 0:01:31][%cal Bc7e8,Be8f6,Bf6e4][%mdl 32]} 27. Rae1 {[%emt 0:02:38]} Bf7 {[%emt 0:01:20]} 28. Re5 {[%emt 0:00:13]} Nf6 {[%emt 0:00:34]} (28... Bxe5 29. dxe5 Nc7 30. Qf2 $15) 29. Nfe3 {[%emt 0:00:48][%cal Re3d5]} h4 {[%emt 0:05:52]} (29... Rae8 $142 30. Rxe8 Rxe8) 30. Qf2 {[%emt 0:04:09]} h3 {[%emt 0:01:23]} ({Of course not} 30... Bxe5 $6 31. dxe5 Nh5 32. Bxh5 hxg3 33. Qxg3 Rxh5 34. Nd4 $15) (30... Nh5 $1 $17 31. gxh4 Nxf4 32. Nxf5+ gxf5 33. Qg3+ Ng6) 31. Re2 {[%emt 0:02:15]} (31. gxh3 $11 Rxh3 32. Nxd5 Nxd5 33. Bxd5) 31... Rad8 {[%emt 0:01:16]} 32. Qe1 {[%emt 0:05:10]} (32. gxh3 $2 Rxh3 33. Qg2 Rdh8 34. Rxd5 Nxd5 35. Bxd5 g5 36. Bxf7 Qxf7 $19) (32. Qf1 $15) 32... Ne4 $36 {[%emt 0:00:56][%mdl 2048] Black is on the roll.} 33. g4 {[%emt 0:01:06][%cal Rg4f5]} Bxe5 {[%emt 0:00:14] Black is more active.} 34. dxe5 {[%emt 0:00:08]} hxg2 {[%emt 0:00:44]} 35. Rxg2 {[%emt 0:03:25] gxf5 is the strong threat.} Rh3 $1 {[%emt 0:00:08] White must now prevent ...Rdh8.} 36. e6 $2 {[%emt 0:00:11] Loses the game.} (36. Bxe4 $17 {keeps fighting.} fxe4 37. Rh2 Rxh2 38. Kxh2) 36... Bxe6 $19 {[%emt 0:01:24]} 37. gxf5 {[%emt 0:00:46]} Bxf5 {[%emt 0:00:27]} ({And not} 37... Rxf3 38. Rxg6+ Kf8 39. Qh4 $11) 38. Nxf5+ {[%emt 0:01:42]} Qxf5 {[%emt 0:00:04] Dancing on a razor blade.} 39. Nd4 {[%emt 0:00:04] [#]} (39. Bg4 Rdh8 $1 40. Bxh3 Qxh3) 39... Qf6 {[%emt 0:01:43] And now ...Re8 would win.} 40. Bxe4 $2 {[%emt 0:04:58]} (40. f5 {was the only defense.} Kh8 41. fxg6) 40... Re8 {[%emt 0:00:39][%cal Bd8e8,Be8e4,Be4h4][%mdl 96] Pin, Zwischenzug} ({Don't go for} 40... dxe4 $2 41. Qxe4 Kh7 42. Rg5 $19) 41. f5 {[%emt 0:34:58][%cal Rg2g6]} Rxe4 {[%emt 0:30:19]} 42. Qf2 {[%emt 0:00:11]} Reh4 {[%emt 0:00:00][%csl Gh4][%cal Rh3h1]} 43. Rxg6+ {[%emt 0:00:00] [#]} Qxg6+ $1 {[%emt 0:00:00][%mdl 512]} 44. fxg6 {[%emt 0:00:00]} Rh1+ {[%emt 0:00:00]} 45. Kg2 {[%emt 0:00:00]} R4h2+ {[%emt 0:00:00]} 46. Kg3 {[%emt 0:00:00]} Rxf2 {[%emt 0:00:00]} 47. Kxf2 {[%emt 0:00:00][%mdl 4096] Endgame KR-KN} Rh2+ {[%emt 0:00:00]} 48. Ke3 {[%emt 0:00:00]} Rxb2 {[%emt 0:00:00]} 49. Kf4 {[%emt 0:00:00]} Kxg6 {[%emt 0:00:00] ( -> ...b4)} 50. Ke5 {[%emt 0:00:00]} b4 {[%emt 0:00:00]} 51. axb4 {[%emt 0:00:00]} axb4 {[%emt 0:00:00]} 52. cxb4 {[%emt 0:00:00]} c3 {[%emt 0:00:00][%cal Bc4c3,Bc3c2][%mdl 32]} 53. b5 {[%emt 0:00:00] [#]} Rxb5 $3 {[%emt 0:00:00][%mdl 512]} 54. Nxb5 {[%emt 0:00:00]} c2 {[%emt 0:00:00] Weighted Error Value: White=0.76/Black=0.09 (flawless)} 0-1

[Event "USA Championship 2022"]
[Site "Saint Louis"]
[Date "2022.10.05"]
[Round "1.5"]
[White "Xiong, Jeffery"]
[Black "Swiercz, Dariusz"]
[Result "1/2-1/2"]
[ECO "E09"]
[WhiteElo "2690"]
[BlackElo "2652"]
[Annotator "TA"]
[PlyCount "116"]
[EventDate "2022.09.05"]
[EventType "tourn"]
[EventCountry "USA"]
[SourceTitle "playchess.com"]
[Source "ChessBase"]
[SourceQuality "1"]
[TimeControl "40/5400+30:1800+30"]

{[%evp 18,116,7,23,62,62,60,60,81,81,66,57,55,52,66,42,57,53,47,50,78,35,46,41,43,35,33,29,33,26,26,19,33,29,33,14,35,12,17,0,45,44,53,7,45,45,35,35,35,43,33,21,57,-50,-39,-73,-14,-39,0,0,0,0,4,5,29,24,57,43,72,67,132,125,125,125,133,92,92,92,92,92,92,92,92,92,92,92,92,92,106,106,106,106,106,0,106,0,106,0,106,0,106]} 1. d4 {[%emt 0:00:05]} d5 {[%emt 0:00:10]} 2. c4 {[%emt 0:00:18]} c6 {[%emt 0:00:02]} 3. Nf3 {[%emt 0:01:23]} Nf6 {[%emt 0:00:05]} 4. Qc2 {[%emt 0:00:21]} e6 {[%emt 0:02:37]} 5. g3 {[%emt 0:04:29]} Be7 {[%emt 0:01:24]} 6. Bg2 {[%emt 0:00:09]} O-O {[%emt 0:00:05]} 7. O-O {[%emt 0:00:06]} b6 {[%emt 0:00:03]} 8. b3 {[%emt 0:07:13]} Nbd7 {[%emt 0:07:58]} 9. Rd1 {[%emt 0:02:27]} Ba6 {[%emt 0:09:55]} 10. Nbd2 {[%emt 0:03:06]} b5 {[%emt 0:06:05] 10...c5 is becoming the main line. E09: Closed Catalan: Main Line: 7 Qc2 c6 8 Nbd2.} 11. c5 $1 {[%emt 0:07:35]} b4 {[%emt 0:00:08]} 12. Re1 {[%emt 0:01:41]} Bb5 {[%emt 0:25:15] White is slightly better.} 13. a4 {[%emt 0:05:20]} bxa3 {[%emt 0:03:27]} 14. Rxa3 {[%emt 0:00:30]} a5 {[%emt 0:03:01][%cal Oe6e5]} 15. Bb2 {[%emt 0:06:22]} Qc7 {[%emt 0:00:56]} 16. Bc3 {[%emt 0:05:00]} Ra6 {[%emt 0:11:41]} 17. e3 {[%emt 0:10:29]} Rfa8 {[%emt 0:00:26]} 18. Rea1 {[%emt 0:00:25]} Bd8 {[%emt 0:03:19] [#]} 19. Qd1 $146 {[%emt 0:03:10]} ({Predecessor:} 19. h3 Qb7 20. Ne1 Bc7 21. Nd3 e5 22. Nxe5 Nxe5 23. dxe5 {½-½ (98) Donchenko,A (2460)-Pham,M (2466) Nantes 2005}) 19... Qb8 {[%emt 0:06:36]} 20. R1a2 {[%emt 0:04:41]} R8a7 {[%emt 0:05:56]} 21. Qa1 {[%emt 0:10:03][%cal Rc3a5]} Qa8 {[%emt 0:00:04]} 22. Ne1 {[%emt 0:05:09]} a4 {[%emt 0:09:25]} 23. b4 {[%emt 0:00:18]} Ne8 {[%emt 0:00:02]} 24. Bf3 {[%emt 0:01:48]} Nc7 {[%emt 0:00:55]} 25. Bd1 {[%emt 0:00:11]} f5 {[%emt 0:00:25]} 26. Nef3 {[%emt 0:05:07]} Nf6 {[%emt 0:02:33]} 27. Ne5 {[%emt 0:00:41]} Ne4 {[%emt 0:00:29]} 28. Ndf3 {[%emt 0:02:54]} Ne8 {[%emt 0:00:01]} 29. Be1 {[%emt 0:01:23]} Bf6 {[%emt 0:00:41]} 30. Qc1 {[%emt 0:00:45]} (30. h4 $14) 30... Ng5 {[%emt 0:01:11]} 31. Nxg5 {[%emt 0:03:10]} Bxg5 {[%emt 0:00:01]} 32. Bc2 {[%emt 0:00:04]} Bf6 {[%emt 0:01:01]} 33. Nd3 {[%emt 0:00:22][%cal Be5d3,Bd3b2,Bb2a4,Ba4b6][%mdl 32]} Nc7 {[%emt 0:00:30]} 34. Nb2 {[%emt 0:00:18]} e5 {[%emt 0:00:30]} 35. Qd1 {[%emt 0:06:02]} (35. dxe5 $14 Bxe5 36. Bxf5) 35... e4 {[%emt 0:00:25]} 36. Bd2 {[%emt 0:01:45]} g6 {[%emt 0:00:33]} (36... Ne6 $17) 37. Bc1 $11 {[%emt 0:00:33][%cal Rb2a4]} Bd8 {[%emt 0:00:20]} (37... Qf8 {keeps more tension.} 38. Kg2 g5 39. Qh5 Kh8) 38. Nxa4 {[%emt 0:00:43]} h5 {[%emt 0:00:42]} 39. h4 {[%emt 0:01:30]} Ne8 {[%emt 0:00:30]} 40. Bb2 {[%emt 0:01:03]} Kf7 {[%emt 0:00:27]} 41. Qa1 {[%emt 0:18:58]} Bc4 {[%emt 0:16:22]} 42. Nb6 $1 {[%emt 0:00:05]} Rxa3 {[%emt 0:00:02]} 43. Rxa3 {[%emt 0:00:23]} (43. Nxa8 $2 {too greedy.} Rxa2 44. Qc1 Rxa8 $19) (43. Bxa3 $2 Bxb6 44. cxb6 Ra6 $19) 43... Rxa3 {[%emt 0:00:06]} ({Better is} 43... Bxb6 $14 44. cxb6 Rxa3 45. Qxa3 Qb7) 44. Qxa3 $16 {[%emt 0:00:18]} ({Inferior is} 44. Nxa8 Rxa1+ 45. Bxa1 Ke6 $11) ({Weaker is} 44. Bxa3 Bxb6 45. cxb6 Bb5 $11) 44... Qxa3 {[%emt 0:00:10]} 45. Bxa3 {[%emt 0:00:02]} Bb5 {[%emt 0:00:06]} 46. Na4 {[%emt 0:01:27]} Nc7 {[%emt 0:09:17]} 47. Nc3 {[%emt 0:01:18]} Bc4 {[%emt 0:00:14]} 48. Ba4 {[%emt 0:04:17]} Nb5 {[%emt 0:00:04]} 49. Nxb5 {[%emt 0:00:53]} Bxb5 {[%emt 0:02:00]} 50. Bxb5 {[%emt 0:01:45]} cxb5 {[%emt 0:00:08][%mdl 4096] Endgame KB-KB} 51. Kg2 {[%emt 0:00:06]} Ke6 {[%emt 0:00:06]} 52. f3 {[%emt 0:00:21]} exf3+ {[%emt 0:00:32]} 53. Kxf3 {[%emt 0:00:03]} Bc7 {[%emt 0:00:04]} 54. Bc1 {[%emt 0:00:12]} Kd7 {[%emt 0:00:13]} 55. Ba3 {[%emt 0:00:46]} (55. Bd2 $16) 55... Bb8 {[%emt 0:00:07]} (55... Ke6 $1 $11 {remains equal.}) 56. Bc1 {[%emt 0:00:07]} Bc7 $1 {[%emt 0:00:01]} 57. Ba3 {[%emt 0:00:04]} (57. Bb2 $16) 57... Bb8 {[%emt 0:00:02]} (57... Ke6 $11) 58. Bc1 {[%emt 0:00:07]} Bc7 $1 {[%emt 0:00:16] Weighted Error Value: White=0.18 (very precise) /Black=0.18 (very precise)} 1/2-1/2